bitfinex/quotes_BTCUSD_20220201
["timestamp","ask_amount","ask_price","bid_price","bid_amount"]
[1643730243843,0.00142544,38355.0,38353.0,0.13139069]
[1643730244038,0.00142544,38355.0,38353.0,0.27674256]
[1643730244640,0.00142553,38356.0,38354.0,0.04712806]
[1643730244839,0.00578935,38355.0,38349.0,0.32631125]
[1643730245046,0.00142553,38356.0,38351.0,0.04914522]
[1643730245242,0.00142553,38356.0,38350.0,0.55471715]
[1643730245243,0.0259157,38367.0,38353.0,0.04418059]
[1643730245441,0.00578935,38364.0,38354.0,0.04642034]
[1643730245641,0.00578935,38364.0,38355.0,0.08330795]
[1643730245901,0.00578935,38364.0,38361.0,0.13077208]
[1643730246096,0.02012635,38367.0,38362.0,0.0481446]
[1643730246300,2.635e-05,38367.0,38363.0,0.38920864]
[1643730246599,0.01,38369.0,38366.0,0.0201]
[1643730246994,0.01,38369.0,38367.0,0.47995918]
[1643730247195,0.27644422,38379.0,38367.0,0.56614647]
[1643730247196,0.08446712,38376.0,38367.0,0.56614647]
[1643730247398,0.08446712,38376.0,38366.0,0.0201]
[1643730247399,0.41141364,38376.0,38368.0,0.05]
[1643730247597,0.41141364,38376.0,38374.0,0.01882778]
[1643730247598,0.87343454,38375.0,38374.0,0.01882778]
[1643730247895,0.87343454,38375.0,38374.0,0.0061437]
[1643730247896,0.92930078,38375.0,38374.0,0.0061437]
[1643730248194,0.93996546,38375.0,38374.0,0.0061437]
[1643730248395,1.05166868,38375.0,38374.0,0.0061437]
[1643730248596,0.41260508,38375.0,38374.0,0.0061437]
[1643730249495,0.95639715,38375.0,38374.0,0.0061437]
[1643730249750,1.03463912,38375.0,38374.0,0.0061437]
[1643730250550,0.41260508,38375.0,38374.0,0.0061437]
[1643730251349,0.06268408,38375.0,38374.0,0.0061437]
[1643730251749,0.06268408,38375.0,38373.0,0.14973164]
[1643730251750,0.06,38379.0,38373.0,0.19973164]
[1643730251952,0.00142698,38376.0,38373.0,0.05]
[1643730252149,0.349921,38375.0,38373.0,0.05]
[1643730252348,0.349921,38375.0,38362.0,0.81574581]
[1643730252349,0.399921,38375.0,38362.0,0.81574581]
[1643730252553,0.19398373,38374.0,38362.0,0.07034581]
[1643730252750,0.23113343,38373.0,38365.0,0.09389642]
[1643730252951,0.23113343,38373.0,38364.0,0.32209073]
[1643730253150,0.00142708,38370.0,38368.0,0.13245046]
[1643730253399,0.00142708,38370.0,38358.0,0.5163]
[1643730253400,0.349921,38369.0,38358.0,0.5163]
[1643730253595,0.1954687,38368.0,38354.0,0.130368]
[1643730253795,0.0479,38367.0,38353.0,0.00124116]
[1643730253994,0.0479,38367.0,38348.0,0.5695]
[1643730253995,1.5774687,38366.0,38352.0,0.24852375]
[1643730254195,0.397821,38365.0,38352.0,0.24352375]
[1643730254395,0.397821,38365.0,38357.0,0.13417743]
[1643730254396,0.05,38358.0,38357.0,0.13417743]
[1643730254794,0.26599714,38359.0,38357.0,0.13417743]
[1643730254795,0.31599714,38359.0,38357.0,0.13417743]
[1643730254994,0.349921,38358.0,38357.0,0.13417743]
[1643730255595,0.05080833,38359.0,38357.0,0.13417743]
[1643730255798,0.00080833,38359.0,38357.0,0.13417743]
[1643730256197,0.23038048,38374.0,38357.0,0.13417743]
[1643730256198,0.32642108,38377.0,38358.0,0.57352309]
[1643730256399,0.1,38378.0,38358.0,0.22360209]
[1643730256598,0.01927252,38370.0,38363.0,0.23259507]
[1643730256798,0.01927252,38370.0,38368.0,0.1265152]
[1643730256999,0.01927252,38370.0,38369.0,0.13025988]
[1643730257951,0.01927252,38370.0,38369.0,1.12726407]
[1643730258146,0.01927252,38370.0,38369.0,1.47718507]
[1643730258348,0.01927252,38370.0,38369.0,0.85846492]
[1643730258746,0.01,38379.0,38369.0,0.85846492]
[1643730258747,0.25027298,38376.0,38369.0,0.85846492]
[1643730258947,0.25027298,38376.0,38369.0,0.50854392]
[1643730259347,0.01,38379.0,38376.0,0.14167111]
[1643730259548,0.349921,38378.0,38376.0,0.14167111]
[1643730259751,0.01,38379.0,38376.0,0.14167111]
[1643730259752,0.01,38379.0,38377.0,0.05]
[1643730260148,0.349921,38378.0,38377.0,0.05]
[1643730260648,0.399921,38378.0,38370.0,0.065166]
[1643730260900,0.05,38378.0,38369.0,0.05]
[1643730261093,0.29313736,38379.0,38365.0,0.20289089]
[1643730261094,0.34313736,38379.0,38365.0,0.05]
[1643730261593,0.00127958,38375.0,38372.0,0.12719046]
[1643730261793,0.00127958,38375.0,38372.0,0.17719046]
[1643730262399,0.00127958,38375.0,38373.0,0.2008226]
[1643730262594,0.01,38379.0,38374.0,0.649921]
[1643730262793,0.00127958,38375.0,38374.0,0.699921]
[1643730262993,0.00127958,38375.0,38374.0,0.92429483]
[1643730263393,0.00127958,38375.0,38374.0,1.14925069]
[1643730263594,0.00127958,38375.0,38374.0,0.63459013]
[1643730263794,0.01,38379.0,38374.0,0.399921]
[1643730263994,0.01,38379.0,38374.0,0.05]
[1643730264292,0.01,38379.0,38373.0,0.06516]
[1643730264742,0.01,38379.0,38378.0,0.20062247]
[1643730264947,0.01,38379.0,38378.0,0.14212798]
[1643730265945,0.01,38379.0,38378.0,0.99212798]
[1643730266144,0.01,38379.0,38378.0,1.34204898]
[1643730266344,0.01,38379.0,38378.0,0.54204898]
[1643730267148,0.01,38379.0,38378.0,0.19212798]
[1643730267349,0.01,38379.0,38378.0,0.05]
[1643730267552,0.01,38379.0,38367.0,0.56353334]
[1643730267553,0.359921,38379.0,38367.0,0.56353334]
[1643730267747,0.359921,38379.0,38367.0,0.02123334]
[1643730267748,0.005,38379.0,38367.0,0.02123334]
[1643730267947,0.005,38379.0,38369.0,0.065162]
[1643730268398,0.005,38379.0,38367.0,0.02123334]
[1643730268399,0.005,38379.0,38373.0,0.14374494]
[1643730268793,0.001428,38377.0,38373.0,0.19374494]
[1643730269094,0.30121973,38376.0,38370.0,0.130328]
[1643730269293,0.1,38375.0,38370.0,0.130328]
[1643730269894,0.1,38375.0,38368.0,0.130336]
[1643730270100,0.21794162,38370.0,38368.0,0.130336]
[1643730270298,0.26794162,38370.0,38368.0,0.180336]
[1643730270493,0.05,38370.0,38368.0,0.180336]
[1643730270896,0.05,38374.0,38368.0,0.180336]
[1643730271094,0.0479,38378.0,38368.0,0.180336]
[1643730271294,0.00128788,38377.0,38368.0,0.180336]
[1643730271496,0.00128788,38377.0,38370.0,0.23869058]
[1643730271694,0.00128788,38377.0,38373.0,0.29730196]
[1643730271895,0.00128788,38377.0,38373.0,0.34730196]
[1643730272145,0.005,38379.0,38373.0,0.34730196]
[1643730272347,0.0026057,38378.0,38373.0,0.34730196]
[1643730272547,0.00128801,38377.0,38373.0,0.34730196]
[1643730272752,0.00128801,38377.0,38376.0,0.28450299]
[1643730272948,0.00128801,38377.0,38375.0,0.05]
[1643730272949,0.00389371,38377.0,38375.0,0.05]
[1643730273149,0.00389371,38377.0,38373.0,0.41246396]
[1643730273351,0.0026057,38377.0,38373.0,0.41246396]
[1643730274051,0.0026057,38377.0,38374.0,0.840766]
[1643730274849,0.0038937,38377.0,38374.0,0.840766]
[1643730275906,0.02843503,38389.0,38374.0,0.840766]
[1643730276100,0.0026058,38376.0,38375.0,0.1]
[1643730276299,0.0026058,38376.0,38375.0,0.73894477]
[1643730276498,0.02843503,38389.0,38377.0,0.130285]
[1643730276699,0.02843503,38389.0,38385.0,0.1343295]
[1643730276900,0.02843503,38389.0,38386.0,0.0871288]
[1643730277099,0.02843503,38389.0,38386.0,0.05]
[1643730277299,0.03031247,38389.0,38387.0,0.04313653]
[1643730277500,0.03031247,38389.0,38384.0,0.065143]
[1643730277501,0.08031247,38389.0,38388.0,0.03578769]
[1643730277702,0.70547605,38389.0,38388.0,0.03500335]
[1643730277905,0.75337605,38389.0,38386.0,0.0459467]
[1643730278101,0.92925355,38389.0,38387.0,0.04092476]
[1643730278302,0.19804481,38388.0,38379.0,0.03683257]
[1643730278503,0.19804481,38388.0,38380.0,0.03475075]
[1643730278504,0.29036129,38386.0,38380.0,0.03475075]
[1643730278703,0.349921,38385.0,38381.0,0.03429783]
[1643730279002,0.05,38385.0,38382.0,0.04786107]
[1643730279201,0.05,38385.0,38383.0,0.04340722]
[1643730279403,0.05,38385.0,38380.0,0.130304]
[1643730279404,0.349921,38384.0,38380.0,0.130304]
[1643730279646,0.399921,38384.0,38380.0,0.180304]
[1643730280146,0.05,38384.0,38380.0,0.180304]
[1643730280650,0.1,38386.0,38380.0,0.180304]
[1643730280845,0.00143096,38384.0,38380.0,0.130304]
[1643730281046,0.00143096,38384.0,38380.0,0.180304]
[1643730281845,0.08556662,38385.0,38380.0,0.180304]
[1643730282045,0.00143096,38384.0,38380.0,0.180304]
[1643730282446,0.00143096,38384.0,38381.0,0.065149]
[1643730282848,0.00143096,38384.0,38382.0,0.349921]
[1643730283046,0.01,38389.0,38382.0,0.349921]
[1643730283250,0.00128975,38384.0,38381.0,0.065149]
[1643730283494,0.00128975,38384.0,38382.0,0.55951217]
[1643730283792,0.00128975,38384.0,38382.0,0.60951217]
[1643730283993,0.00128975,38384.0,38383.0,0.065141]
[1643730284197,0.01,38389.0,38384.0,0.065143]
[1643730284391,0.00128974,38385.0,38384.0,0.195429]
[1643730284594,0.00128974,38385.0,38384.0,0.245429]
[1643730284992,0.00128974,38385.0,38384.0,0.1588785]
[1643730285395,0.01,38389.0,38384.0,0.1588785]
[1643730285797,0.00128972,38386.0,38384.0,0.1588785]
[1643730286392,0.00128972,38386.0,38385.0,0.09527179]
[1643730286594,0.01,38389.0,38385.0,0.09527179]
[1643730286795,0.01,38389.0,38386.0,0.349921]
[1643730286796,0.00132149,38387.0,38386.0,0.349921]
[1643730287251,0.00132149,38387.0,38385.0,0.29653334]
[1643730287851,0.01,38389.0,38385.0,0.09527179]
[1643730288152,0.00132147,38388.0,38385.0,0.09527179]
[1643730289153,0.01,38389.0,38384.0,0.1588785]
[1643730289353,0.00132147,38388.0,38384.0,0.1588785]
[1643730290256,0.01,38389.0,38384.0,0.0937355]
[1643730290552,0.00131433,38388.0,38384.0,0.0937355]
[1643730291399,0.14323793,38389.0,38384.0,0.0937355]
[1643730291596,0.00131433,38388.0,38384.0,0.0937355]
[1643730291796,0.00131433,38388.0,38384.0,0.0437355]
[1643730291797,0.23137671,38387.0,38384.0,0.0437355]
[1643730291997,0.23137671,38387.0,38379.0,0.130309]
[1643730291998,0.397821,38386.0,38379.0,0.130309]
[1643730292196,0.0479,38386.0,38379.0,0.130309]
[1643730292598,0.0479,38386.0,38380.0,0.065151]
[1643730292798,0.0479,38386.0,38379.0,0.130309]
[1643730292799,0.29648988,38380.0,38379.0,0.130309]
[1643730292999,0.00131437,38384.0,38379.0,0.180309]
[1643730293000,0.0479,38383.0,38379.0,0.180309]
[1643730293196,0.05,38380.0,38379.0,0.180309]
[1643730293600,0.05,38382.0,38379.0,0.180309]
[1643730293797,0.0979,38383.0,38379.0,0.180309]
[1643730293999,0.00131602,38381.0,38379.0,0.180309]
[1643730294197,0.06647906,38381.0,38379.0,0.180309]
[1643730294846,0.349921,38380.0,38379.0,0.180309]
[1643730295047,0.06516304,38381.0,38379.0,0.180309]
[1643730295847,0.349921,38380.0,38379.0,0.180309]
[1643730296047,0.399921,38380.0,38379.0,0.180309]
[1643730297453,0.399921,38380.0,38375.0,0.13134728]
[1643730297454,0.74270436,38380.0,38375.0,0.13032]
[1643730297751,0.32642108,38377.0,38365.0,0.00410726]
[1643730297952,0.06518941,38374.0,38365.0,0.00410726]
[1643730298149,0.54480436,38373.0,38365.0,0.00410726]
[1643730298406,0.33511824,38366.0,38365.0,0.00410726]
[1643730298600,1.49813724,38366.0,38364.0,0.0204121]
[1643730298797,1.49813724,38366.0,38359.0,0.0011]
[1643730298798,2.02680436,38365.0,38359.0,0.0011]
[1643730299099,0.11310022,38364.0,38359.0,0.0011]
[1643730299293,0.349921,38363.0,38359.0,0.0011]
[1643730299494,0.0479,38362.0,38359.0,0.0011]
[1643730300095,0.05,38364.0,38360.0,0.03378335]
[1643730300294,0.05,38364.0,38361.0,0.0404338]
[1643730300494,0.11518735,38367.0,38357.0,0.066301]
[1643730300696,0.30797936,38366.0,38359.0,0.04637693]
[1643730300995,0.17942064,38365.0,38360.0,0.04516511]
[1643730301196,0.06519444,38363.0,38361.0,0.06644004]
[1643730301397,0.349921,38362.0,38361.0,0.06644004]
[1643730301599,0.11309444,38363.0,38361.0,0.43951136]
[1643730301800,0.32642108,38372.0,38361.0,0.43951136]
[1643730301801,0.1,38372.0,38369.0,0.12828203]
[1643730301998,0.00142961,38378.0,38369.0,0.12828203]
[1643730302250,0.06517458,38375.0,38369.0,0.05]
[1643730302450,1.70842108,38377.0,38369.0,0.115175]
[1643730302651,0.349921,38370.0,38369.0,0.115175]
[1643730302849,0.397821,38370.0,38369.0,0.115175]
[1643730303453,0.397821,38370.0,38360.0,0.195548]
[1643730303454,0.59277744,38370.0,38363.0,0.065193]
[1643730303655,0.59277744,38370.0,38368.0,0.00125281]
[1643730303656,0.68777744,38370.0,38368.0,0.00125281]
[1643730303855,2.35883644,38369.0,38368.0,0.00046677]
[1643730304054,1.382,38367.0,38362.0,0.00501198]
[1643730304256,2.88444085,38363.0,38362.0,0.00501198]
[1643730304453,3.42036697,38363.0,38362.0,0.00501198]
[1643730304652,3.42036697,38363.0,38353.0,0.0031]
[1643730304653,0.06521162,38360.0,38353.0,0.0031]
[1643730304854,0.1,38355.0,38344.0,0.0022]
[1643730305057,1.382,38351.0,38344.0,0.0011]
[1643730305254,1.382,38351.0,38340.0,0.00210407]
[1643730305255,0.64482644,38350.0,38340.0,0.00210407]
[1643730305452,0.27375294,38343.0,38339.0,0.00120407]
[1643730305652,0.54955536,38342.0,38339.0,0.00120407]
[1643730305917,0.1479,38341.0,38339.0,0.00120407]
[1643730306105,0.34987,38340.0,38339.0,0.00181575]
[1643730306304,0.49777,38340.0,38339.0,0.00181575]
[1643730306505,0.49467,38340.0,38339.0,0.00181575]
[1643730306704,0.39467,38340.0,38339.0,0.00181575]
[1643730307103,0.39467,38340.0,38339.0,0.00120407]
[1643730307305,0.0479,38340.0,38339.0,0.00120407]
[1643730308104,0.397832,38340.0,38339.0,0.00120407]
[1643730309305,0.0479,38340.0,38339.0,0.00120407]
[1643730309510,0.6402346,38340.0,38339.0,0.00120407]
[1643730309959,0.2424026,38340.0,38339.0,0.00120407]
[1643730311454,0.2424026,38340.0,38339.0,0.04652617]
[1643730311652,0.2424026,38340.0,38339.0,0.00120407]
[1643730311854,0.5923346,38340.0,38339.0,0.00120407]
[1643730312654,0.2424026,38340.0,38339.0,0.00120407]
[1643730313699,0.22474251,38350.0,38339.0,0.00120407]
[1643730313700,0.15071584,38351.0,38342.0,0.065212]
[1643730313901,0.02028333,38351.0,38342.0,0.065212]
[1643730314497,0.02028333,38351.0,38345.0,0.00122222]
[1643730314700,0.02028333,38351.0,38346.0,0.065212]
[1643730314896,0.08548979,38351.0,38346.0,0.065212]
[1643730315099,0.08548979,38351.0,38346.0,0.130424]
[1643730315297,0.06520646,38351.0,38346.0,0.130424]
[1643730315700,0.295675,38361.0,38347.0,0.35115416]
[1643730315701,0.19498984,38354.0,38347.0,0.35115416]
[1643730315900,0.06520161,38354.0,38347.0,0.05122216]
[1643730316104,0.06520161,38354.0,38348.0,0.1304]
[1643730316502,0.15455176,38354.0,38348.0,0.1304]
[1643730316803,0.06520161,38354.0,38349.0,0.00122208]
[1643730317551,0.349932,38353.0,38349.0,0.00122208]
[1643730317952,0.349932,38353.0,38348.0,0.62790062]
[1643730318151,0.06520161,38354.0,38349.0,0.13164108]
[1643730318450,0.06520161,38354.0,38349.0,0.18164108]
[1643730319152,0.06520161,38354.0,38349.0,0.180419]
[1643730319351,0.06520161,38354.0,38350.0,0.00122206]
[1643730319551,0.349932,38353.0,38350.0,0.00122206]
[1643730320152,0.06520161,38354.0,38351.0,0.4862059]
[1643730320351,0.06520161,38354.0,38352.0,0.115202]
[1643730320902,0.06520161,38354.0,38353.0,0.09906884]
[1643730321499,0.06519665,38357.0,38353.0,0.09906884]
[1643730321700,0.21163148,38362.0,38354.0,0.1106593]
[1643730321701,0.01917858,38362.0,38354.0,0.1106593]
[1643730321902,0.01917858,38362.0,38355.0,0.4507397]
[1643730322099,0.01917858,38362.0,38357.0,0.13037]
[1643730322298,0.01917858,38362.0,38359.0,0.04816309]
[1643730322503,0.01917858,38362.0,38360.0,0.38308137]
[1643730322699,0.28050765,38375.0,38361.0,0.22950911]
[1643730322899,0.28050765,38375.0,38365.0,0.11281794]
[1643730322900,0.0180666,38373.0,38365.0,0.11281794]
[1643730323101,0.0180666,38373.0,38366.0,0.19467804]
[1643730323300,0.00571874,38379.0,38368.0,0.0468006]
[1643730323499,0.00571874,38379.0,38372.0,0.0180666]
[1643730323700,0.21994936,38386.0,38382.0,0.09027037]
[1643730323899,0.21994936,38386.0,38382.0,0.20705244]
[1643730323900,0.0651522,38385.0,38382.0,0.20705244]
[1643730324102,0.21994936,38386.0,38382.0,0.22125844]
[1643730324103,0.00571944,38383.0,38382.0,0.22125844]
[1643730324301,0.00571944,38383.0,38382.0,1.32119044]
[1643730324752,0.01,38389.0,38382.0,0.67119044]
[1643730324953,0.01,38399.0,38394.0,0.065131]
[1643730324954,0.29506602,38399.0,38394.0,0.065131]
[1643730325154,0.349932,38398.0,38395.0,0.07019075]
[1643730325351,0.06513467,38397.0,38395.0,0.07019075]
[1643730325551,0.349932,38396.0,38395.0,0.07019075]
[1643730325751,0.349932,38396.0,38395.0,0.05]
[1643730325950,0.349932,38396.0,38393.0,0.180264]
[1643730327354,0.09644996,38394.0,38393.0,0.180264]
[1643730328053,0.44638196,38394.0,38393.0,0.180264]
[1643730329297,0.349932,38394.0,38393.0,0.180264]
[1643730329498,0.00144407,38395.0,38393.0,0.180264]
[1643730329898,0.06513467,38397.0,38393.0,0.180264]
[1643730330099,0.349932,38396.0,38393.0,0.245401]
[1643730330303,0.35137606,38396.0,38393.0,0.180264]
[1643730330501,0.36682004,38395.0,38393.0,0.130264]
[1643730330703,0.56501779,38394.0,38393.0,0.130264]
[1643730330900,0.56501779,38394.0,38392.0,0.130285]
[1643730331099,0.29843902,38393.0,38392.0,0.130285]
[1643730331300,0.64837102,38393.0,38392.0,0.130285]
[1643730332161,2.03037102,38393.0,38388.0,0.130308]
[1643730332360,0.46298762,38392.0,38388.0,0.130308]
[1643730332562,0.19468739,38391.0,38388.0,0.180308]
[1643730332761,0.47524257,38390.0,38388.0,0.180308]
[1643730333161,0.27948861,38389.0,38388.0,0.180308]
[1643730333362,0.449932,38389.0,38388.0,0.180308]
[1643730333562,0.06515562,38392.0,38388.0,0.05]
[1643730333763,0.00144415,38390.0,38387.0,0.115153]
[1643730333962,0.00144415,38390.0,38387.0,0.065153]
[1643730334562,0.00144415,38390.0,38389.0,0.19579868]
[1643730334761,0.06513383,38395.0,38389.0,0.24579868]
[1643730334964,0.06513383,38395.0,38391.0,0.03782931]
[1643730335163,0.06513383,38395.0,38392.0,0.04725971]
[1643730335364,0.06513383,38395.0,38391.0,0.17880831]
[1643730335764,0.06513383,38395.0,38392.0,0.03512444]
[1643730336002,0.06513383,38395.0,38392.0,0.065136]
[1643730336198,0.06657791,38395.0,38393.0,0.04735938]
[1643730336399,0.06657791,38395.0,38392.0,0.065136]
[1643730336598,0.06657791,38395.0,38393.0,0.03500205]
[1643730336999,0.06657791,38395.0,38393.0,0.03411675]
[1643730337198,0.17823277,38394.0,38392.0,0.065136]
[1643730337399,0.17997331,38394.0,38392.0,0.065136]
[1643730337701,0.17997331,38394.0,38391.0,0.12880831]
[1643730337702,0.349827,38393.0,38391.0,0.12880831]
[1643730337900,0.22816968,38392.0,38381.0,0.00127824]
[1643730338105,0.21574985,38384.0,38381.0,0.00127824]
[1643730338302,0.32816968,38392.0,38379.0,0.14179654]
[1643730338303,0.23709582,38385.0,38379.0,0.14179654]
[1643730338501,0.0479,38385.0,38382.0,0.13032]
[1643730339200,0.0479,38385.0,38382.0,0.18032]
[1643730339402,0.0479,38385.0,38383.0,0.0885579]
[1643730339653,0.00577583,38395.0,38383.0,0.0885579]
[1643730339654,0.01,38399.0,38384.0,0.56396987]
[1643730339853,0.00144264,38385.0,38384.0,0.26414287]
[1643730340052,0.00144264,38385.0,38384.0,0.61396987]
[1643730340353,0.00576921,38395.0,38392.0,0.18910496]
[1643730340552,0.00576921,38395.0,38392.0,0.25423996]
[1643730340754,0.06513441,38398.0,38392.0,0.25423996]
[1643730340950,0.349827,38397.0,38392.0,0.25423996]
[1643730342252,0.349827,38397.0,38392.0,0.30423996]
[1643730342450,0.349827,38397.0,38392.0,0.23910296]
[1643730343051,0.349827,38397.0,38392.0,0.30423896]
[1643730343501,0.00144426,38396.0,38392.0,0.30423896]
[1643730343896,0.00144426,38396.0,38392.0,0.17483617]
[1643730344095,0.00144426,38396.0,38391.0,0.13027]
[1643730344096,0.00144426,38396.0,38385.0,0.51336098]
[1643730344296,0.28635332,38398.0,38385.0,0.12426098]
[1643730344496,0.28635332,38398.0,38386.0,0.19855121]
[1643730344797,0.00144427,38396.0,38388.0,0.065139]
[1643730345096,0.00144427,38396.0,38388.0,0.28994085]
[1643730345296,0.00144427,38396.0,38393.0,0.05]
[1643730345496,0.06513441,38398.0,38388.0,0.28994085]
[1643730345699,0.06513441,38398.0,38388.0,0.33994085]
[1643730345897,0.06513441,38398.0,38388.0,0.05]
[1643730346101,0.06513441,38398.0,38392.0,0.065135]
[1643730346102,0.08591866,38394.0,38392.0,0.065135]
[1643730346299,0.349827,38393.0,38391.0,0.13027]
[1643730346498,0.4149767,38393.0,38377.0,0.26056]
[1643730346701,0.1479,38392.0,38377.0,0.26056]
[1643730346897,0.26226443,38388.0,38378.0,0.45696331]
[1643730347149,0.0479,38389.0,38387.0,0.15505614]
[1643730347349,0.0479,38389.0,38388.0,0.03735957]
[1643730347648,0.0479,38389.0,38387.0,0.15505614]
[1643730347850,0.0479,38389.0,38387.0,0.20505614]
[1643730348050,0.349827,38388.0,38387.0,0.20505614]
[1643730348453,0.349827,38388.0,38387.0,0.05]
[1643730348755,0.0479,38389.0,38386.0,0.115151]
[1643730349553,0.06514932,38390.0,38386.0,0.23597811]
[1643730349752,0.06514218,38392.0,38386.0,0.30112111]
[1643730350358,0.06514218,38392.0,38388.0,0.2446518]
[1643730350555,0.06514218,38392.0,38386.0,0.30112111]
[1643730351008,0.06514218,38392.0,38386.0,0.180294]
[1643730351206,0.06514218,38392.0,38386.0,0.115151]
[1643730352109,0.06514218,38392.0,38389.0,0.21082165]
[1643730352308,0.06514218,38392.0,38390.0,0.10120972]
[1643730352510,0.06014218,38392.0,38390.0,0.10120972]
[1643730352709,0.06014218,38392.0,38389.0,0.26082165]
[1643730352710,0.0651385,38396.0,38389.0,0.115141]
[1643730352909,0.065149,38394.0,38389.0,0.115141]
[1643730353111,0.349827,38393.0,38389.0,0.115141]
[1643730353309,0.1,38392.0,38389.0,0.115141]
[1643730353615,0.1,38392.0,38379.0,0.3121]
[1643730353616,0.5,38382.0,38379.0,0.3121]
[1643730353809,0.5,38382.0,38381.0,0.07590717]
[1643730354309,0.5,38382.0,38380.0,0.14665815]
[1643730355950,0.5,38382.0,38381.0,0.07620066]
[1643730356553,0.5,38382.0,38381.0,0.349827]
[1643730356755,0.55,38382.0,38380.0,0.0012855]
[1643730357551,0.05,38378.0,38374.0,0.378]
[1643730357750,0.05,38378.0,38375.0,0.13895169]
[1643730357751,0.5,38377.0,38375.0,0.13895169]
[1643730357951,0.56516,38377.0,38375.0,0.13895169]
[1643730358598,0.61516,38377.0,38375.0,0.13895169]
[1643730358797,0.56516,38377.0,38375.0,0.13895169]
[1643730358997,0.7910919,38377.0,38374.0,0.00128568]
[1643730359202,0.55,38375.0,38374.0,0.00128568]
[1643730359406,1.36052601,38375.0,38374.0,0.00128568]
[1643730359600,1.51052601,38375.0,38374.0,0.00128568]
[1643730360000,1.51052601,38375.0,38365.0,0.3693]
[1643730360001,0.065183,38373.0,38365.0,0.3693]
[1643730360202,0.05,38367.0,38365.0,0.0031]
[1643730360406,0.94101991,38367.0,38365.0,0.0031]
[1643730360800,1.04101991,38367.0,38365.0,0.0031]
[1643730361009,1.04101991,38367.0,38362.0,0.0011]
[1643730361010,0.19278804,38366.0,38362.0,0.0011]
[1643730361202,0.05,38363.0,38362.0,0.0011]
[1643730361399,0.399827,38363.0,38362.0,0.0011]
[1643730361600,0.447727,38363.0,38362.0,0.0011]
[1643730362179,0.0979,38363.0,38362.0,0.0011]
[1643730363571,0.0479,38363.0,38362.0,0.0011]
[1643730363774,0.5,38364.0,38362.0,0.0011]
[1643730364370,0.3592,38364.0,38362.0,0.0011]
[1643730364576,0.05,38381.0,38363.0,0.51550614]
[1643730364577,0.756224,38377.0,38363.0,0.51550614]
[1643730364777,0.260724,38377.0,38366.0,0.1]
[1643730364972,0.05,38382.0,38367.0,0.27753883]
[1643730365171,0.065152,38379.0,38367.0,0.32753883]
[1643730365371,0.065152,38379.0,38368.0,0.349827]
[1643730365573,0.065152,38379.0,38369.0,0.3491102]
[1643730365772,0.065152,38379.0,38378.0,0.12332961]
[1643730366602,0.065152,38379.0,38378.0,0.11832961]
[1643730367202,0.055152,38379.0,38378.0,0.11832961]
[1643730367804,0.055152,38379.0,38378.0,0.32268827]
[1643730368602,0.055152,38379.0,38378.0,0.67251527]
[1643730368802,0.055152,38379.0,38378.0,0.349827]
[1643730369003,0.055152,38379.0,38377.0,0.0012856]
[1643730369660,0.055152,38379.0,38367.0,0.01989955]
[1643730369661,0.05,38370.0,38367.0,0.01989955]
[1643730369856,0.05,38370.0,38367.0,0.14436262]
[1643730370059,0.14424735,38370.0,38367.0,0.01989955]
[1643730370257,0.1,38370.0,38362.0,0.0011]
[1643730370555,0.1,38370.0,38363.0,0.349827]
[1643730370759,0.05,38370.0,38362.0,0.0011]
[1643730370957,0.05,38370.0,38364.0,0.00128602]
[1643730371157,0.05,38370.0,38364.0,0.15840492]
[1643730371357,0.26869733,38371.0,38364.0,0.23855893]
[1643730371856,0.26869733,38371.0,38364.0,0.00128602]
[1643730371857,0.05,38370.0,38364.0,0.00128602]
[1643730372647,0.05,38367.0,38366.0,0.00128597]
[1643730372847,1.06398336,38367.0,38366.0,0.00128597]
[1643730373045,0.05,38363.0,38362.0,0.0011]
[1643730373244,0.61534515,38363.0,38362.0,0.0011]
[1643730373483,0.61534515,38363.0,38360.0,0.0011]
[1643730373484,0.349827,38363.0,38360.0,0.0011]
[1643730373789,0.065195,38365.0,38360.0,0.0011]
[1643730373790,0.05,38365.0,38360.0,0.0011]
[1643730374281,0.065191,38363.0,38360.0,0.0011]
[1643730374480,0.09873708,38361.0,38360.0,0.0011]
[1643730374883,0.065191,38363.0,38360.0,0.29266859]
[1643730375085,0.065191,38363.0,38361.0,0.349827]
[1643730375882,0.065191,38363.0,38361.0,0.61654886]
[1643730376083,0.065191,38363.0,38362.0,0.08976228]
[1643730376282,0.065191,38363.0,38362.0,0.10433528]
[1643730376786,0.040191,38363.0,38362.0,0.20433528]
[1643730377240,9.1e-05,38363.0,38362.0,0.20433528]
[1643730377637,0.065168,38366.0,38362.0,0.20433528]
[1643730377842,0.065168,38366.0,38363.0,0.13680126]
[1643730378039,0.065168,38366.0,38364.0,0.349797]
[1643730378238,0.28801446,38375.0,38365.0,0.1]
[1643730378239,0.130324,38373.0,38365.0,0.1]
[1643730378536,0.130324,38373.0,38370.0,0.13898863]
[1643730378736,0.065162,38372.0,38365.0,0.41036403]
[1643730378937,0.065162,38372.0,38366.0,0.349827]
[1643730379139,0.065162,38372.0,38363.0,0.3953]
[1643730379440,0.06518,38371.0,38364.0,0.00127959]
[1643730379638,0.05,38371.0,38364.0,0.11820833]
[1643730380040,0.065162,38372.0,38364.0,0.37278565]
[1643730380238,0.065162,38372.0,38370.0,0.19014293]
[1643730381485,0.065162,38372.0,38371.0,0.349827]
[1643730381882,0.065162,38372.0,38371.0,0.449827]
[1643730382283,0.065162,38372.0,38371.0,0.64996376]
[1643730382685,0.065162,38372.0,38371.0,0.449827]
[1643730384733,0.130324,38373.0,38371.0,0.349827]
[1643730384734,0.180324,38373.0,38371.0,0.349827]
[1643730384936,0.180324,38373.0,38364.0,0.00127959]
[1643730385135,0.180324,38373.0,38365.0,0.449827]
[1643730385334,0.180324,38373.0,38365.0,0.71759015]
[1643730385335,0.21123315,38371.0,38365.0,0.71759015]
[1643730385742,0.180324,38373.0,38368.0,0.11582011]
[1643730386038,0.130324,38373.0,38369.0,0.44295785]
[1643730386336,0.130324,38373.0,38370.0,0.1]
[1643730386533,0.130324,38373.0,38371.0,0.014481]
[1643730387134,0.130324,38373.0,38370.0,0.1]
[1643730387634,0.130324,38373.0,38369.0,0.09313085]